bitfinex/quotes_BTCUSD_20250101
["timestamp","ask_amount","ask_price","bid_price","bid_amount"]
[1735728883369,0.2139843,93502.0,93501.0,0.19118632]
[1735728883605,0.2139843,93502.0,93501.0,0.19318632]
[1735728884046,0.2139843,93502.0,93501.0,0.19118632]
[1735728884209,0.2139843,93502.0,93501.0,0.18518632]
[1735728884412,0.2139843,93502.0,93501.0,0.21048207]
[1735728884634,0.2139843,93502.0,93501.0,0.21548207]
[1735728884882,0.2139843,93502.0,93501.0,0.21048207]
[1735728885770,0.2139843,93502.0,93501.0,0.21548207]
[1735728888609,0.2139843,93502.0,93501.0,0.11098632]
[1735728888884,0.40994414,93502.0,93501.0,0.00416876]
[1735728889121,0.75642016,93502.0,93501.0,0.0004789]
[1735728889336,0.62745316,93502.0,93501.0,0.0004789]
[1735728889809,0.48856916,93502.0,93501.0,0.0004789]
[1735728890046,0.37707916,93502.0,93501.0,0.0014789]
[1735728890539,0.3639843,93502.0,93501.0,0.0014789]
[1735728890726,0.3639843,93502.0,93501.0,0.001]
[1735728890957,0.3639843,93502.0,93501.0,0.002]
[1735728892088,0.6191783,93502.0,93501.0,0.001]
[1735728892642,0.363908,93498.0,93497.0,0.0001706]
[1735728893969,0.363908,93498.0,93497.0,0.0011706]
[1735728894440,0.363908,93498.0,93497.0,0.0031706]
[1735728896059,0.213904,93500.0,93497.0,0.0853706]
[1735728896173,0.213904,93500.0,93497.0,0.09391625]
[1735728896404,0.213904,93500.0,93498.0,0.10398632]
[1735728897555,0.213906,93499.0,93498.0,0.10398632]
[1735728898036,0.213906,93499.0,93498.0,0.10498632]
[1735728898742,0.213906,93499.0,93498.0,0.10398632]
[1735728898960,0.213906,93499.0,93498.0,0.12806517]
[1735728899187,0.213906,93499.0,93498.0,0.10398632]
[1735728900090,0.213906,93499.0,93498.0,0.10498632]
[1735728900261,0.213906,93499.0,93498.0,0.10598632]
[1735728905114,0.213906,93499.0,93498.0,0.10615692]
[1735728907015,0.213906,93499.0,93498.0,0.18165692]
[1735728907806,0.02320225,93499.0,93498.0,0.18165692]
[1735728908031,0.213904,93500.0,93498.0,0.20442826]
[1735728908703,0.213906,93499.0,93498.0,0.20442826]
[1735728908918,0.213906,93499.0,93498.0,0.20342826]
[1735728909154,0.213906,93499.0,93498.0,0.20242826]
[1735728910307,0.213906,93499.0,93498.0,0.20442826]
[1735728910746,0.213906,93499.0,93498.0,0.20342826]
[1735728910935,0.213906,93499.0,93498.0,0.20442826]
[1735728911146,0.213906,93499.0,93498.0,0.18165692]
[1735728918057,0.2139913,93499.0,93498.0,0.18165692]
[1735728923078,0.2139913,93499.0,93498.0,0.0776706]
[1735728923290,0.2139913,93499.0,93498.0,0.18165692]
[1735728927518,0.2139913,93499.0,93498.0,0.0021706]
[1735728927734,0.2270999,93499.0,93498.0,0.0021706]
[1735728929496,0.41956628,93499.0,93498.0,0.0021706]
[1735728930135,0.40645768,93499.0,93498.0,0.0021706]
[1735728930647,0.78579868,93499.0,93498.0,0.0021706]
[1735728930937,0.70743968,93499.0,93498.0,0.0021706]
[1735728931155,0.65236768,93499.0,93498.0,0.0021706]
[1735728931386,0.4599013,93499.0,93498.0,0.0021706]
[1735728934307,0.13071627,93499.0,93498.0,0.0021706]
[1735728934639,0.213906,93499.0,93498.0,0.0021706]
[1735728935062,0.42652,93499.0,93498.0,0.0021706]
[1735728935925,0.337428,93499.0,93498.0,0.0021706]
[1735728936357,0.322728,93499.0,93498.0,0.0021706]
[1735728939286,0.213906,93499.0,93498.0,0.10615692]
[1735728941537,0.2139913,93499.0,93498.0,0.10615692]
[1735728943639,0.21364032,93499.0,93498.0,0.10615692]
[1735728944499,0.21364032,93499.0,93498.0,0.18385692]
[1735728944500,8.53e-05,93499.0,93498.0,0.18385692]
[1735728945728,8.53e-05,93499.0,93498.0,0.18285692]
[1735728946312,8.53e-05,93499.0,93498.0,0.18185692]
[1735728946513,8.53e-05,93499.0,93498.0,0.18385692]
[1735728946740,8.53e-05,93499.0,93498.0,0.20682826]
[1735728947149,8.53e-05,93499.0,93498.0,0.21082826]
[1735728947479,8.53e-05,93499.0,93498.0,0.21282826]
[1735728950202,8.53e-05,93499.0,93498.0,0.28412826]
[1735728951388,8.53e-05,93499.0,93498.0,0.27812826]
[1735728951651,8.53e-05,93499.0,93498.0,0.28712826]
[1735728953176,8.53e-05,93499.0,93498.0,0.28512826]
[1735728953408,8.53e-05,93499.0,93498.0,0.38912826]
[1735728968546,8.53e-05,93499.0,93498.0,0.48912826]
[1735728969256,8.53e-05,93499.0,93498.0,0.48512826]
[1735728969448,8.53e-05,93499.0,93498.0,0.48012826]
[1735728969806,8.53e-05,93499.0,93498.0,0.48512826]
[1735728970007,8.53e-05,93499.0,93498.0,0.47612826]
[1735728970414,8.53e-05,93499.0,93498.0,0.48512826]
[1735728970711,8.53e-05,93499.0,93498.0,0.48112826]
[1735728970912,8.53e-05,93499.0,93498.0,0.49012826]
[1735728972091,8.53e-05,93499.0,93498.0,0.48512826]
[1735728972524,8.53e-05,93499.0,93498.0,0.49012826]
[1735728972752,8.53e-05,93499.0,93498.0,0.48112826]
[1735728972965,8.53e-05,93499.0,93498.0,0.47612826]
[1735728973151,8.53e-05,93499.0,93498.0,0.49012826]
[1735728974339,8.53e-05,93499.0,93498.0,0.48112826]
[1735728974642,8.53e-05,93499.0,93498.0,0.49012826]
[1735728974989,8.53e-05,93499.0,93498.0,0.48512826]
[1735728975616,8.53e-05,93499.0,93498.0,0.26215692]
[1735728975837,8.53e-05,93499.0,93498.0,0.21385692]
[1735728976244,8.53e-05,93499.0,93498.0,0.21885692]
[1735728976877,8.53e-05,93499.0,93498.0,0.20485692]
[1735728977085,8.53e-05,93499.0,93498.0,0.20985692]
[1735728977312,8.53e-05,93499.0,93498.0,0.21885692]
[1735728977534,8.53e-05,93499.0,93498.0,0.14115692]
[1735728977810,8.53e-05,93499.0,93498.0,0.13615692]
[1735728978004,8.53e-05,93499.0,93498.0,0.14115692]
[1735728979627,8.53e-05,93499.0,93498.0,0.11815692]
[1735728979839,8.53e-05,93499.0,93498.0,0.14115692]
[1735728980726,8.53e-05,93499.0,93498.0,0.11815692]
[1735728980945,0.29220398,93499.0,93498.0,0.0141706]
[1735728981164,0.55635198,93499.0,93498.0,0.0141706]
[1735728981382,0.55635198,93499.0,93498.0,0.0091706]
[1735728981845,0.55635198,93499.0,93498.0,0.0101706]
[1735728982722,0.5432333,93499.0,93498.0,0.0011706]
[1735728983011,0.5432333,93499.0,93498.0,0.0041706]
[1735728983222,0.5432333,93499.0,93498.0,0.0001706]
[1735728983444,0.5432333,93499.0,93498.0,0.0011706]
[1735728983661,0.5432333,93499.0,93498.0,0.0021706]
[1735728983876,0.5432333,93499.0,93498.0,0.0011706]
[1735728986726,0.2790853,93499.0,93498.0,0.0011706]
[1735728986939,0.5432333,93499.0,93498.0,0.0011706]
[1735728992693,0.55635336,93499.0,93498.0,6e-07]
[1735728992968,0.29220536,93499.0,93498.0,6e-07]
[1735728993455,0.414148,93498.0,93497.0,0.0001706]
[1735728993687,0.628056,93498.0,93497.0,0.0001706]
[1735728993919,0.64117606,93498.0,93497.0,0.0001706]
[1735728996234,0.64117606,93498.0,93497.0,6e-07]
[1735728996455,0.37702806,93498.0,93497.0,6e-07]
[1735728998673,0.45882806,93498.0,93497.0,6e-07]
[1735728999403,0.45882806,93498.0,93489.0,0.00014939]
[1735728999404,0.213922,93492.0,93489.0,8.9e-07]
[1735728999590,0.363926,93490.0,93489.0,8.9e-07]
[1735729001936,0.363926,93490.0,93489.0,0.00100089]
[1735729002159,0.628074,93490.0,93489.0,0.00100089]
[1735729002837,0.628074,93490.0,93489.0,8.9e-07]
[1735729003026,0.363926,93490.0,93489.0,8.9e-07]
[1735729009243,0.15,93491.0,93489.0,8.9e-07]
[1735729009481,0.264148,93490.0,93489.0,8.9e-07]
[1735729009749,0.213926,93490.0,93489.0,8.9e-07]
[1735729012128,0.363926,93490.0,93489.0,0.00017149]
[1735729012549,0.628074,93490.0,93489.0,0.00017149]
[1735729024854,0.6281593,93490.0,93489.0,0.00017149]
[1735729028607,0.5584233,93490.0,93489.0,0.00017149]
[1735729030467,0.3640113,93490.0,93489.0,0.00017149]
[1735729030674,0.6281593,93490.0,93489.0,0.00017149]
[1735729040275,0.6281593,93490.0,93489.0,4.9e-07]
[1735729040539,0.3640113,93490.0,93489.0,4.9e-07]
[1735729040954,0.37714486,93490.0,93489.0,4.9e-07]
[1735729048288,0.3640113,93490.0,93489.0,4.9e-07]
[1735729058634,0.363938,93485.0,93484.0,9e-08]
[1735729062738,0.06972078,93485.0,93484.0,9e-08]
[1735729063090,0.28918588,93487.0,93484.0,9e-08]
[1735729063319,0.264148,93486.0,93484.0,9e-08]
[1735729063787,0.213938,93485.0,93484.0,9e-08]
[1735729068981,0.12380868,93487.0,93484.0,9e-08]
[1735729069197,0.264148,93486.0,93484.0,9e-08]
[1735729069415,0.264148,93487.0,93484.0,9e-08]
[1735729069627,0.213938,93485.0,93484.0,9e-08]
[1735729070979,0.363938,93485.0,93484.0,9e-08]
[1735729071453,0.3641086,93485.0,93484.0,9e-08]
[1735729071656,0.09020325,93485.0,93484.0,9e-08]
[1735729072476,0.2161086,93485.0,93484.0,9e-08]
[1735729083316,0.3661086,93485.0,93484.0,9e-08]
[1735729088181,0.2161086,93485.0,93484.0,0.07510009]
[1735729088351,0.2161086,93485.0,93484.0,0.12290009]
[1735729089866,0.55886788,93485.0,93484.0,0.12290009]
[1735729090551,0.3661086,93485.0,93484.0,0.12290009]
[1735729091369,0.55886788,93485.0,93484.0,0.12290009]
[1735729091534,1.05886788,93485.0,93484.0,0.12290009]
[1735729092116,1.05886788,93485.0,93484.0,0.07190009]
[1735729092341,0.8661086,93485.0,93484.0,0.07190009]
[1735729092596,0.3661086,93485.0,93484.0,0.07190009]
[1735729094578,0.3661086,93485.0,93484.0,0.07198539]
[1735729096018,0.6302566,93485.0,93484.0,8.53e-05]
[1735729098329,0.6302566,93485.0,93478.0,9e-07]
[1735729098330,0.213951,93479.0,93478.0,9e-07]
[1735729098559,0.4089278,93479.0,93478.0,9e-07]
[1735729099225,0.37710064,93479.0,93478.0,9e-07]
[1735729099451,0.61804974,93479.0,93478.0,9e-07]
[1735729100308,0.363951,93479.0,93478.0,9e-07]
[1735729101990,0.366951,93479.0,93478.0,9e-07]
[1735729102222,0.367951,93479.0,93478.0,9e-07]
[1735729102653,0.370951,93479.0,93478.0,9e-07]
[1735729102871,0.371951,93479.0,93478.0,9e-07]
[1735729107929,0.371951,93479.0,93478.0,0.0467009]
[1735729108392,0.371951,93479.0,93478.0,9e-07]
[1735729109284,0.213967,93472.0,93471.0,0.07390402]
[1735729109500,0.363967,93472.0,93471.0,0.07390402]
[1735729109696,0.628115,93472.0,93471.0,0.07390402]
[1735729110318,0.60466738,93472.0,93471.0,0.07390402]
[1735729110538,0.60566738,93472.0,93471.0,0.07390402]
[1735729111372,0.60766738,93472.0,93471.0,0.07390402]
[1735729112455,0.366967,93472.0,93471.0,0.07390402]
[1735729113184,0.08230907,93472.0,93471.0,0.07390402]
[1735729113755,0.29627607,93472.0,93471.0,0.07390402]
[1735729118755,0.29627607,93472.0,93471.0,0.07398932]
[1735729120270,0.29527607,93472.0,93471.0,0.07398932]
[1735729121050,0.29327607,93472.0,93471.0,0.07398932]
[1735729121285,0.29327607,93472.0,93471.0,8.53e-05]
[1735729121498,0.29527607,93472.0,93471.0,8.53e-05]
[1735729121720,0.29427607,93472.0,93471.0,8.53e-05]
[1735729121926,0.29627607,93472.0,93471.0,8.53e-05]
[1735729122140,0.29527607,93472.0,93471.0,8.53e-05]
[1735729123018,0.29627607,93472.0,93471.0,8.53e-05]
[1735729124299,0.40951835,93472.0,93471.0,8.53e-05]
[1735729126664,0.216967,93472.0,93471.0,8.53e-05]
[1735729127057,0.17019708,93473.0,93471.0,8.53e-05]
[1735729127512,0.213963,93474.0,93471.0,8.53e-05]
[1735729127513,0.38416008,93474.0,93471.0,8.53e-05]
[1735729127719,0.213967,93472.0,93471.0,8.53e-05]
[1735729134521,0.214967,93472.0,93471.0,8.53e-05]
[1735729134726,0.213967,93472.0,93471.0,8.53e-05]
[1735729135134,0.214967,93472.0,93471.0,8.53e-05]
[1735729139156,0.40757229,93472.0,93471.0,8.53e-05]
[1735729139906,0.214967,93472.0,93471.0,8.53e-05]
[1735729140303,0.213967,93472.0,93471.0,8.53e-05]
[1735729140728,0.214967,93472.0,93471.0,8.53e-05]
[1735729140923,0.213967,93472.0,93471.0,8.53e-05]
[1735729141487,0.214967,93472.0,93471.0,8.53e-05]
[1735729142578,0.214967,93472.0,93471.0,0.10407162]
[1735729143237,0.45566738,93472.0,93471.0,0.10407162]
[1735729143439,0.45566738,93472.0,93471.0,0.17967162]
[1735729144084,0.213967,93472.0,93471.0,0.17967162]
[1735729144280,0.214967,93472.0,93471.0,0.17967162]
[1735729144717,0.213967,93472.0,93471.0,0.17967162]
[1735729144933,0.213967,93472.0,93471.0,0.18267162]
[1735729145100,0.363967,93472.0,93471.0,0.20689583]
[1735729145419,0.363967,93472.0,93471.0,0.18367162]
[1735729167046,0.15,93472.0,93471.0,0.18367162]
[1735729167735,0.15,93472.0,93471.0,0.18067162]
[1735729167985,0.15,93472.0,93471.0,0.18567162]
[1735729168502,0.15,93472.0,93471.0,0.18067162]
[1735729168712,0.15,93472.0,93471.0,0.18667162]
[1735729169174,0.15,93472.0,93471.0,0.21029583]
[1735729169630,0.15,93472.0,93471.0,0.20929583]
[1735729169852,0.15,93472.0,93471.0,0.21129583]
[1735729170222,0.15,93472.0,93471.0,0.20929583]
[1735729170430,0.15,93472.0,93471.0,0.20329583]
[1735729170636,0.15,93472.0,93471.0,0.20829583]
[1735729170840,0.15,93472.0,93471.0,0.21029583]
[1735729173482,0.15,93472.0,93471.0,0.18667162]
[1735729174070,0.15,93472.0,93471.0,0.18467162]
[1735729174512,0.15,93472.0,93471.0,0.18167162]
[1735729174974,0.15,93472.0,93471.0,0.18667162]
[1735729185957,0.213953,93479.0,93471.0,0.18667162]
[1735729186163,0.213953,93479.0,93472.0,0.12761053]
[1735729187397,0.213965,93473.0,93472.0,0.12761053]
[1735729188042,0.213954,93478.0,93472.0,0.12961053]
[1735729188270,0.213954,93478.0,93472.0,0.12761053]
[1735729189161,0.213954,93478.0,93472.0,0.13261053]
[1735729189363,0.213954,93478.0,93473.0,0.02588663]
[1735729189566,0.213954,93478.0,93474.0,0.10398632]
[1735729191021,0.427909,93478.0,93474.0,0.10398632]
[1735729191456,0.427909,93478.0,93474.0,0.10798632]
[1735729192044,0.4280796,93478.0,93474.0,0.10398632]
[1735729192247,0.4280796,93478.0,93474.0,0.10598632]
[1735729193562,0.4280796,93478.0,93474.0,0.10998632]
[1735729193798,0.0001706,93478.0,93477.0,0.25558632]
[1735729195169,0.0001706,93478.0,93477.0,0.26458632]
[1735729195355,0.0001706,93478.0,93477.0,0.25558632]
[1735729195891,0.0001706,93478.0,93477.0,0.25958632]
[1735729196113,0.0001706,93478.0,93477.0,0.30555348]
[1735729196833,0.0001706,93478.0,93477.0,0.31455348]
[1735729198120,0.0001706,93478.0,93477.0,0.30155348]
[1735729198668,0.0001706,93478.0,93477.0,0.31455348]
[1735729198880,0.0001706,93478.0,93477.0,0.31055348]
[1735729199154,0.0001706,93478.0,93477.0,0.41055348]
[1735729199666,0.0001706,93478.0,93477.0,0.41455348]
[1735729199878,0.0001706,93478.0,93477.0,0.40555348]
[1735729200134,0.0001706,93478.0,93477.0,0.41455348]
[1735729200326,0.0001706,93478.0,93477.0,0.40555348]
[1735729200618,0.0001706,93478.0,93477.0,0.41455348]
[1735729200923,0.0001706,93478.0,93477.0,0.41055348]
[1735729201139,0.0001706,93478.0,93477.0,0.41455348]
[1735729203487,0.0001706,93478.0,93477.0,0.40555348]
[1735729203758,0.0001706,93478.0,93477.0,0.41455348]
[1735729204113,0.0001706,93478.0,93477.0,0.41055348]
[1735729204664,7.712e-05,93478.0,93477.0,0.41655348]
[1735729210432,7.712e-05,93478.0,93477.0,0.40960511]
[1735729214255,7.712e-05,93478.0,93477.0,0.36363795]
[1735729215303,7.712e-05,93478.0,93477.0,0.23503795]
[1735729217674,7.712e-05,93478.0,93477.0,0.31713795]
[1735729222697,7.712e-05,93478.0,93477.0,0.36273795]
[1735729229050,7.712e-05,93478.0,93477.0,0.36282315]
[1735729230416,7.712e-05,93478.0,93477.0,0.40912253]
[1735729241808,7.712e-05,93478.0,93477.0,0.62307853]
[1735729242304,9.795e-05,93485.0,93484.0,0.2283]
[1735729242519,9.795e-05,93485.0,93484.0,0.35528632]
[1735729243020,9.795e-05,93485.0,93484.0,0.34928632]
[1735729243243,9.795e-05,93485.0,93484.0,0.44314361]
[1735729243476,9.795e-05,93485.0,93484.0,0.44814361]
[1735729244765,9.795e-05,93485.0,93484.0,0.45714361]
[1735729245622,0.213899,93502.0,93485.0,0.117]
[1735729245853,0.213908,93499.0,93494.0,0.10398632]
[1735729246074,0.213908,93499.0,93494.0,0.11438495]
[1735729247496,0.213908,93499.0,93494.0,0.10598632]
[1735729247945,0.213908,93499.0,93494.0,0.11098632]
[1735729253111,0.213908,93499.0,93494.0,0.11115672]
[1735729256765,8.52e-05,93503.0,93498.0,0.10398632]
[1735729256981,8.52e-05,93503.0,93502.0,0.30238632]
[1735729257205,0.19279903,93503.0,93502.0,0.30238632]
[1735729257438,0.19279903,93503.0,93502.0,0.34888632]
[1735729258044,8.52e-05,93503.0,93502.0,0.34888632]
[1735729258698,8.52e-05,93503.0,93502.0,0.35788632]
[1735729258846,8.52e-05,93503.0,93502.0,0.41893761]
[1735729259303,8.52e-05,93503.0,93502.0,0.42393761]
[1735729264063,8.52e-05,93503.0,93502.0,0.41493761]
[1735729264294,8.52e-05,93503.0,93502.0,0.42393761]
[1735729264525,8.52e-05,93503.0,93502.0,0.41893761]
[1735729264941,8.52e-05,93503.0,93502.0,0.42393761]
[1735729265347,8.52e-05,93503.0,93502.0,0.41893761]
[1735729265789,8.52e-05,93503.0,93502.0,0.42493761]
[1735729270693,8.52e-05,93503.0,93502.0,0.40993761]
[1735729270931,8.52e-05,93503.0,93502.0,0.42493761]
[1735729271397,8.52e-05,93503.0,93502.0,0.40993761]
[1735729271610,8.52e-05,93503.0,93502.0,0.41893761]
[1735729271813,8.52e-05,93503.0,93502.0,0.42493761]
[1735729272247,0.213872,93514.0,93503.0,0.117]
[1735729272450,0.213872,93514.0,93511.0,0.10398632]
[1735729273261,0.21377854,93514.0,93511.0,0.10398632]
[1735729273670,0.21377854,93514.0,93511.0,0.11298632]
[1735729274198,0.213863,93518.0,93511.0,0.11298632]
[1735729274622,0.213863,93518.0,93511.0,0.11698632]
[1735729274850,0.213863,93518.0,93512.0,0.01169863]
[1735729275061,0.213871,93514.0,93513.0,0.10398632]
[1735729276308,0.213871,93514.0,93513.0,0.10413577]
[1735729276963,0.2139562,93514.0,93513.0,0.11313577]
[1735729277562,0.2139562,93514.0,93513.0,0.11713577]
[1735729282677,8.52e-05,93514.0,93513.0,0.11713577]
[1735729282922,8.52e-05,93514.0,93513.0,0.12884935]
[1735729283620,8.52e-05,93514.0,93513.0,0.12484935]
[1735729283875,8.52e-05,93514.0,93513.0,0.11313577]
[1735729284097,8.52e-05,93514.0,93513.0,0.11713577]
[1735729284548,8.52e-05,93514.0,93513.0,0.19283577]
[1735729284771,8.52e-05,93514.0,93513.0,0.21983577]
[1735729284997,8.52e-05,93514.0,93513.0,0.25121935]
[1735729285221,0.006,93534.0,93514.0,0.023]
[1735729285452,0.006,93534.0,93516.0,0.10398632]
[1735729286067,0.213837,93529.0,93516.0,0.10398632]
[1735729286332,0.213837,93529.0,93517.0,0.02512193]
[1735729286603,0.213837,93529.0,93518.0,0.10398632]
[1735729286846,0.213837,93529.0,93519.0,0.00099391]
[1735729287088,0.213837,93529.0,93520.0,0.10398632]
[1735729288014,0.213849,93524.0,93520.0,0.10398632]
[1735729289501,0.427699,93524.0,93520.0,0.10398632]
[1735729289732,0.427699,93524.0,93520.0,0.10598632]
[1735729290186,0.427699,93524.0,93520.0,0.10498632]
[1735729290411,0.427699,93524.0,93520.0,0.10398632]
[1735729290654,0.427699,93524.0,93520.0,0.10598632]
[1735729290860,0.427699,93524.0,93520.0,0.10998632]
[1735729291106,0.213849,93524.0,93520.0,0.10998632]
[1735729291559,0.427699,93524.0,93520.0,0.10998632]
[1735729291998,0.213849,93524.0,93520.0,0.10998632]
[1735729292450,0.156,93521.0,93520.0,0.10998632]
[1735729292678,0.156,93521.0,93513.0,0.00031985]
[1735729292679,0.894196,93521.0,93513.0,0.00031985]
[1735729292897,0.894196,93521.0,93513.0,8.5e-07]
[1735729292898,0.445571,93514.0,93513.0,8.5e-07]
[1735729293341,0.45252106,93514.0,93513.0,8.5e-07]
[1735729294716,0.50072106,93514.0,93513.0,8.5e-07]
[1735729301593,0.493771,93514.0,93513.0,8.5e-07]
[1735729302677,0.7656147,93514.0,93513.0,8.5e-07]
[1735729302905,0.77322324,93514.0,93513.0,8.5e-07]
[1735729303598,0.7415234,93514.0,93513.0,8.5e-07]
[1735729303827,0.42092054,93514.0,93513.0,8.5e-07]
[1735729303975,0.3716524,93514.0,93513.0,8.5e-07]
[1735729304200,0.13150854,93514.0,93513.0,8.5e-07]
[1735729304604,0.34537954,93514.0,93513.0,8.5e-07]
[1735729305009,0.53741841,93514.0,93513.0,8.5e-07]
[1735729305815,0.52980987,93514.0,93513.0,8.5e-07]
[1735729306039,0.487771,93514.0,93513.0,8.5e-07]
[1735729311016,0.61947084,93514.0,93513.0,8.5e-07]
[1735729311290,0.72780782,93514.0,93513.0,8.5e-07]
[1735729312381,0.363896,93503.0,93502.0,2.5e-07]
[1735729312592,0.446796,93503.0,93502.0,2.5e-07]
[1735729313702,0.451796,93503.0,93502.0,2.5e-07]
[1735729313918,0.453796,93503.0,93502.0,2.5e-07]
[1735729329463,0.64567005,93503.0,93502.0,2.5e-07]
[1735729329672,0.64567005,93503.0,93494.0,0.0001704]
[1735729329673,0.363915,93495.0,93494.0,6.5e-07]
[1735729329876,0.363915,93495.0,93494.0,6.3e-07]
[1735729330769,0.364915,93495.0,93494.0,6.3e-07]
[1735729331092,0.001,93495.0,93494.0,6.3e-07]
[1735729331746,0.214915,93495.0,93494.0,6.3e-07]
[1735729335953,0.214915,93495.0,93494.0,0.00017103]
[1735729336855,2.545507,93495.0,93494.0,0.00017103]
[1735729337074,2.532676,93495.0,93494.0,0.00017103]
[1735729337633,2.531676,93495.0,93494.0,0.00017103]
[1735729337828,2.336407,93495.0,93494.0,0.00017103]
[1735729338058,1.848701,93495.0,93494.0,0.00017103]
[1735729338521,2.04057505,93495.0,93494.0,0.00017103]
[1735729339672,2.08874958,93495.0,93494.0,0.00017103]
[1735729341387,2.08902761,93495.0,93494.0,3e-08]
[1735729341605,0.64638909,93495.0,93494.0,3e-08]
[1735729342006,0.40634051,93495.0,93494.0,3e-08]
[1735729342641,0.365915,93495.0,93494.0,3e-08]
[1735729343213,0.363915,93495.0,93494.0,3e-08]
[1735729343616,0.370915,93495.0,93494.0,3e-08]
[1735729348698,0.3710003,93495.0,93494.0,3e-08]
[1735729351053,0.58374614,93495.0,93494.0,3e-08]
[1735729351301,0.68374584,93495.0,93494.0,3e-08]
[1735729351551,0.76594584,93495.0,93494.0,3e-08]
[1735729352051,0.78894584,93495.0,93494.0,3e-08]
[1735729352274,0.78894584,93495.0,93474.0,8.53e-05]
[1735729352275,0.36396,93475.0,93474.0,5.3e-07]
[1735729352476,0.36396,93475.0,93474.0,9.087e-05]
[1735729352887,0.86396,93475.0,93474.0,8.7e-07]
[1735729353559,0.86496,93475.0,93474.0,8.7e-07]
[1735729354126,0.363974,93469.0,93468.0,6.7e-07]
[1735729354359,0.463974,93469.0,93468.0,4.5e-07]
[1735729354534,0.70843855,93469.0,93468.0,4.5e-07]
[1735729356177,0.71643855,93469.0,93468.0,4.5e-07]
[1735729356666,0.15,93458.0,93457.0,5e-08]
[1735729356854,0.15,93458.0,93457.0,0.00011748]
[1735729357207,2.581559,93458.0,93457.0,4.8e-07]
[1735729357429,0.35496818,93458.0,93457.0,4.8e-07]
[1735729358321,0.364027,93446.0,93445.0,7.8e-07]
[1735729358790,1.07242684,93446.0,93445.0,7.8e-07]
[1735729359030,1.37641286,93446.0,93445.0,7.8e-07]
[1735729359674,1.09572654,93446.0,93445.0,7.8e-07]
[1735729359800,1.0640267,93446.0,93445.0,7.8e-07]
[1735729360247,0.9730267,93446.0,93445.0,7.8e-07]
[1735729360662,0.9640267,93446.0,93445.0,7.8e-07]
[1735729360862,0.364047,93437.0,93436.0,0.0788]
[1735729361071,0.364059,93432.0,93431.0,0.0002]
[1735729361855,1.656536,93432.0,93431.0,0.0002]
[1735729362071,1.554659,93432.0,93431.0,0.0002]
[1735729362288,1.524878,93432.0,93431.0,0.0002]
[1735729362500,1.478979,93432.0,93431.0,0.0002]
[1735729362717,1.468433,93432.0,93431.0,0.0002]
[1735729362932,1.470433,93432.0,93431.0,0.0002]
[1735729363372,1.976433,93432.0,93431.0,0.0002]
[1735729363520,1.968433,93432.0,93431.0,0.0002]
[1735729364144,1.975433,93432.0,93431.0,0.0002]
[1735729364346,0.15,93431.0,93428.0,0.07397087]
[1735729364549,1.569679,93431.0,93428.0,0.0704465]
[1735729364752,0.364066,93429.0,93428.0,0.0704465]
[1735729364952,0.364066,93429.0,93428.0,0.05644985]
[1735729364953,1.48253,93429.0,93428.0,0.05644985]
[1735729365171,1.505798,93429.0,93428.0,0.05644985]
[1735729365832,1.505798,93429.0,93428.0,0.05694849]
[1735729366464,1.141732,93429.0,93428.0,0.05694849]
[1735729366664,0.221066,93429.0,93428.0,0.04370996]
[1735729366918,1.539509,93429.0,93428.0,0.04370996]
[1735729367086,1.530194,93429.0,93428.0,0.04370996]
[1735729367295,1.520126,93429.0,93428.0,0.04370996]
[1735729367919,0.223066,93429.0,93428.0,0.00049864]
[1735729368355,1.423901,93429.0,93428.0,0.00049864]
[1735729371596,0.15,93428.0,93427.0,2.4e-07]
[1735729371807,1.459927,93428.0,93427.0,2.4e-07]
[1735729372023,0.15,93428.0,93427.0,2.4e-07]
[1735729372481,0.221066,93429.0,93427.0,2.4e-07]
[1735729372627,1.743087,93428.0,93427.0,2.4e-07]
[1735729372842,0.152,93428.0,93427.0,2.4e-07]
[1735729373254,0.15,93428.0,93427.0,2.4e-07]
[1735729373456,0.156,93428.0,93427.0,2.4e-07]
[1735729375686,0.158,93428.0,93427.0,2.4e-07]
[1735729384440,2.427463,93427.0,93426.0,8.4e-07]
[1735729384648,0.36407,93427.0,93426.0,8.4e-07]
[1735729386185,0.40658828,93427.0,93426.0,8.4e-07]
[1735729386401,0.40658828,93427.0,93419.0,0.0001704]
[1735729386402,0.364086,93420.0,93419.0,2.4e-07]
[1735729386618,0.14170627,93420.0,93419.0,2.4e-07]
[1735729387312,0.35579227,93420.0,93419.0,0.07660024]
[1735729387543,0.214082,93422.0,93419.0,0.16054658]
[1735729387767,0.214076,93425.0,93421.0,0.1255]
[1735729387957,0.214076,93425.0,93422.0,0.10398632]
[1735729388178,0.214076,93425.0,93423.0,0.1225]
[1735729388404,0.214076,93425.0,93424.0,0.15288632]
[1735729388627,0.0001706,93432.0,93425.0,0.0489]
[1735729388854,0.0001706,93432.0,93425.0,0.16817498]
[1735729389074,0.0001706,93432.0,93426.0,0.0489]
[1735729389292,0.0001706,93432.0,93427.0,0.10398632]
[1735729389518,0.0001706,93432.0,93429.0,0.10398632]
[1735729389745,0.05171331,93470.0,93430.0,0.0489]
[1735729389746,0.00882031,93470.0,93430.0,0.0489]
[1735729389968,0.214031,93445.0,93432.0,0.0489]
[1735729390195,0.15,93444.0,93433.0,0.10505646]
[1735729390419,0.15,93444.0,93433.0,0.10405646]
[1735729391113,0.15,93442.0,93434.0,0.0766]
[1735729391341,0.15,93442.0,93435.0,0.10398632]
[1735729392380,0.15,93440.0,93435.0,0.10398632]
[1735729393682,0.15,93440.0,93435.0,0.10698632]
[1735729394037,0.364041,93440.0,93435.0,0.10998632]
[1735729394472,0.364041,93440.0,93435.0,0.10698632]
[1735729394673,0.365041,93440.0,93435.0,0.11098632]
[1735729395116,0.365041,93440.0,93435.0,0.10698632]
[1735729395326,0.366041,93440.0,93435.0,0.11098632]
[1735729395770,0.366041,93440.0,93435.0,0.10798632]
[1735729395980,0.366041,93440.0,93435.0,0.11098632]
[1735729398249,0.002,93440.0,93437.0,0.10398632]
[1735729398467,0.002,93440.0,93439.0,0.1287]
[1735729398680,0.002,93440.0,93439.0,0.23268632]
[1735729399980,0.0001706,93442.0,93439.0,0.23268632]
[1735729400187,0.0001706,93442.0,93440.0,0.10398632]
[1735729401601,0.0011706,93442.0,93440.0,0.10698632]
[1735729401786,0.0011706,93442.0,93441.0,0.0804]
[1735729401993,0.0011706,93442.0,93441.0,0.18438632]
[1735729403265,0.0011706,93442.0,93441.0,0.25085004]
[1735729403471,0.0011706,93442.0,93441.0,0.25385004]
[1735729403674,0.0001706,93442.0,93441.0,0.25385004]
[1735729403855,0.0011706,93442.0,93441.0,0.25385004]
[1735729404114,0.0011706,93442.0,93441.0,0.23868632]
[1735729404337,0.0001706,93442.0,93441.0,0.23568632]
[1735729404536,0.0011706,93442.0,93441.0,0.23868632]
[1735729407831,0.213969,93472.0,93441.0,0.23868632]
[1735729407832,0.0799,93470.0,93441.0,0.23868632]